[Event "Early-Titled-Tuesday-Blitz-April-02-2024"]
[Site "Chess.com"]
[Date "2024.04.02"]
[Round "7"]
[White "Aygehovit1992"]
[Black "Zakaryan_David"]
[Result "1-0"]
[WhiteElo "2848"]
[BlackElo "2661"]
[TimeControl "180+1"]
[EndTime "9:18:41 PDT"]
[Termination "Aygehovit1992 won by checkmate"]

1. e4 {[%clk 0:03:00.9]} 1... c5 {[%clk 0:03:00.1]} 2. Nf3 {[%clk 0:03:01.2]}
2... d6 {[%clk 0:03:00.6]} 3. Bb5+ {[%clk 0:03:01.2]} 3... Bd7 {[%clk
0:02:58.1]} 4. Bxd7+ {[%clk 0:02:58.7]} 4... Qxd7 {[%clk 0:02:59]} 5. O-O {[%clk
0:02:59.4]} 5... Nf6 {[%clk 0:02:58.7]} 6. Re1 {[%clk 0:02:58.8]} 6... e6 {[%clk
0:02:57.7]} 7. c3 {[%clk 0:02:58.8]} 7... Nc6 {[%clk 0:02:55.9]} 8. d4 {[%clk
0:02:58.8]} 8... cxd4 {[%clk 0:02:56.6]} 9. cxd4 {[%clk 0:02:59.7]} 9... d5
{[%clk 0:02:57.3]} 10. e5 {[%clk 0:03:00.1]} 10... Ne4 {[%clk 0:02:57.5]} 11. a3
{[%clk 0:03:00.6]} 11... Be7 {[%clk 0:02:56.5]} 12. Qd3 {[%clk 0:03:00.7]} 12...
O-O {[%clk 0:02:54.1]} 13. Nbd2 {[%clk 0:03:00.7]} 13... Nxd2 {[%clk 0:02:53.4]}
14. Bxd2 {[%clk 0:03:01.6]} 14... h6 {[%clk 0:02:50.4]} 15. h4 {[%clk
0:03:00.9]} 15... Rfc8 {[%clk 0:02:50.9]} 16. h5 {[%clk 0:03:01.2]} 16... a5
{[%clk 0:02:51.1]} 17. g4 {[%clk 0:02:57.2]} 17... a4 {[%clk 0:02:28]} 18. g5
{[%clk 0:02:56.9]} 18... hxg5 {[%clk 0:02:27.3]} 19. Bxg5 {[%clk 0:02:57.8]}
19... Na5 {[%clk 0:02:26]} 20. h6 {[%clk 0:02:51.6]} 20... Ra6 {[%clk
0:01:57.1]} 21. Kh2 {[%clk 0:02:49.4]} 21... Rb6 {[%clk 0:01:54.2]} 22. Rg1
{[%clk 0:02:11.7]} 22... Rb3 {[%clk 0:01:52.4]} 23. Qe2 {[%clk 0:02:09.7]} 23...
g6 {[%clk 0:01:40.1]} 24. Bxe7 {[%clk 0:02:05.8]} 24... Qxe7 {[%clk 0:01:41]}
25. Ng5 {[%clk 0:02:04.9]} 25... Nc4 {[%clk 0:01:28.5]} 26. Rac1 {[%clk
0:01:50.1]} 26... Qf8 {[%clk 0:01:21.7]} 27. h7+ {[%clk 0:01:47.4]} 27... Kh8
{[%clk 0:01:18.6]} 28. Rg2 {[%clk 0:01:42.4]} 28... Rc6 {[%clk 0:01:11.7]} 29.
Rc3 {[%clk 0:01:13.4]} 29... Rxc3 {[%clk 0:00:55.5]} 30. bxc3 {[%clk 0:01:12.9]}
30... Rb6 {[%clk 0:00:56]} 31. Qg4 {[%clk 0:00:59]} 31... f5 {[%clk 0:00:44.3]}
32. exf6 {[%clk 0:00:50]} 32... Qxf6 {[%clk 0:00:44]} 33. f4 {[%clk 0:00:22.8]}
33... Ne3 {[%clk 0:00:41]} 34. Qf3 {[%clk 0:00:18.3]} 34... Nxg2 {[%clk
0:00:40.8]} 35. Kxg2 {[%clk 0:00:19.2]} 35... Rb2+ {[%clk 0:00:35.7]} 36. Kg3
{[%clk 0:00:19.3]} 36... Qf5 {[%clk 0:00:34.9]} 37. Qe3 {[%clk 0:00:15.5]} 37...
Rc2 {[%clk 0:00:31.3]} 38. Nxe6 {[%clk 0:00:13.5]} 38... Qe4 {[%clk 0:00:27.8]}
39. Qxe4 {[%clk 0:00:06.9]} 39... dxe4 {[%clk 0:00:28.7]} 40. d5 {[%clk
0:00:07.8]} 40... Rxc3+ {[%clk 0:00:28.5]} 41. Kg4 {[%clk 0:00:06.2]} 41... e3
{[%clk 0:00:26.1]} 42. Kf3 {[%clk 0:00:06.2]} 42... Rxa3 {[%clk 0:00:25]} 43.
Ke2 {[%clk 0:00:05.7]} 43... Rb3 {[%clk 0:00:21.5]} 44. d6 {[%clk 0:00:05.8]}
44... Rb2+ {[%clk 0:00:18.9]} 45. Kxe3 {[%clk 0:00:05.8]} 45... Rb6 {[%clk
0:00:19.6]} 46. Ng5 {[%clk 0:00:03.9]} 46... a3 {[%clk 0:00:16.8]} 47. Nf7+
{[%clk 0:00:02.4]} 47... Kg7 {[%clk 0:00:16.7]} 48. d7 {[%clk 0:00:03.3]} 48...
a2 {[%clk 0:00:14.7]} 49. h8=Q+ {[%clk 0:00:03.2]} 49... Kxf7 {[%clk 0:00:14.8]}
50. d8=Q {[%clk 0:00:03.5]} 50... Rb3+ {[%clk 0:00:15.7]} 51. Ke4 {[%clk
0:00:03.4]} 51... Rb4+ {[%clk 0:00:15.9]} 52. Kd3 {[%clk 0:00:03.8]} 52... Rb3+
{[%clk 0:00:16.4]} 53. Kc4 {[%clk 0:00:04.4]} 53... Rc3+ {[%clk 0:00:16.7]} 54.
Kxc3 {[%clk 0:00:04.3]} 54... a1=Q+ {[%clk 0:00:17.5]} 55. Kc4 {[%clk
0:00:04.9]} 55... Qa2+ {[%clk 0:00:17.8]} 56. Kc5 {[%clk 0:00:05.3]} 56... Qa3+
{[%clk 0:00:18]} 57. Kb6 {[%clk 0:00:05.7]} 57... Qe3+ {[%clk 0:00:18.3]} 58.
Kxb7 {[%clk 0:00:05.7]} 58... Qb3+ {[%clk 0:00:18.1]} 59. Kc8 {[%clk 0:00:06.1]}
59... Qc4+ {[%clk 0:00:18.1]} 60. Qc7+ {[%clk 0:00:06.1]} 60... Qxc7+ {[%clk
0:00:18.7]} 61. Kxc7 {[%clk 0:00:07]} 61... Ke6 {[%clk 0:00:19.6]} 62. Qe5+
{[%clk 0:00:06.9]} 62... Kf7 {[%clk 0:00:20.5]} 63. Kd6 {[%clk 0:00:06.9]} 63...
g5 {[%clk 0:00:20]} 64. fxg5 {[%clk 0:00:06.2]} 64... Kg6 {[%clk 0:00:20]} 65.
Qf6+ {[%clk 0:00:06.6]} 65... Kh5 {[%clk 0:00:20.9]} 66. g6 {[%clk 0:00:06.9]}
66... Kg4 {[%clk 0:00:21.8]} 67. g7 {[%clk 0:00:07.3]} 67... Kh5 {[%clk
0:00:22.7]} 68. Qf7+ {[%clk 0:00:06.3]} 68... Kh6 {[%clk 0:00:23.1]} 69. Ke7
{[%clk 0:00:06.2]} 69... Kg5 {[%clk 0:00:22.2]} 70. g8=Q+ {[%clk 0:00:06.6]}
70... Kh4 {[%clk 0:00:22.5]} 71. Qfh7# {[%clk 0:00:07.2]} 1-0

[Event "Early-Titled-Tuesday-Blitz-April-02-2024"]
[Site "Chess.com"]
[Date "2024.04.02"]
[Round "7"]
[White "Yan_Dyomin2010"]
[Black "FGHSMN"]
[Result "1-0"]
[WhiteElo "2705"]
[BlackElo "2900"]
[TimeControl "180+1"]
[EndTime "9:18:42 PDT"]
[Termination "Yan_Dyomin2010 won on time"]

1. e4 {[%clk 0:03:00.9]} 1... e5 {[%clk 0:02:59.4]} 2. Nc3 {[%clk 0:02:59.2]}
2... Nc6 {[%clk 0:02:58.8]} 3. Bc4 {[%clk 0:02:58.4]} 3... Nf6 {[%clk
0:02:57.7]} 4. d3 {[%clk 0:02:56.4]} 4... h6 {[%clk 0:02:56]} 5. Nge2 {[%clk
0:02:55.8]} 5... Bc5 {[%clk 0:02:52.6]} 6. O-O {[%clk 0:02:54]} 6... O-O {[%clk
0:02:51.3]} 7. a3 {[%clk 0:02:52.7]} 7... a6 {[%clk 0:02:50.5]} 8. Be3 {[%clk
0:02:50.9]} 8... d6 {[%clk 0:02:48.9]} 9. h3 {[%clk 0:02:49.4]} 9... Bxe3 {[%clk
0:02:44.3]} 10. fxe3 {[%clk 0:02:48.9]} 10... Be6 {[%clk 0:02:45.2]} 11. Nd5
{[%clk 0:02:36.5]} 11... Bxd5 {[%clk 0:02:40.9]} 12. exd5 {[%clk 0:02:27.7]}
12... Ne7 {[%clk 0:02:40.8]} 13. e4 {[%clk 0:02:26.3]} 13... Nd7 {[%clk
0:02:29]} 14. Ng3 {[%clk 0:02:22.1]} 14... g6 {[%clk 0:02:28.5]} 15. d4 {[%clk
0:02:15.4]} 15... exd4 {[%clk 0:02:13]} 16. Qxd4 {[%clk 0:02:14.8]} 16... Ne5
{[%clk 0:02:13.5]} 17. Rf2 {[%clk 0:02:09.5]} 17... Kg7 {[%clk 0:02:11.5]} 18.
Raf1 {[%clk 0:02:08.6]} 18... Ng8 {[%clk 0:02:09.1]} 19. Be2 {[%clk 0:02:06.8]}
19... Qg5 {[%clk 0:02:07.2]} 20. Kh2 {[%clk 0:02:06.6]} 20... h5 {[%clk
0:01:57.6]} 21. Bxh5 {[%clk 0:02:01.2]} 21... Nh6 {[%clk 0:01:36.1]} 22. Bd1
{[%clk 0:01:54.4]} 22... Rh8 {[%clk 0:01:34.8]} 23. Qc3 {[%clk 0:01:35.1]} 23...
Rac8 {[%clk 0:01:34.3]} 24. Kg1 {[%clk 0:01:17.6]} 24... Kg8 {[%clk 0:01:27.9]}
25. Rf4 {[%clk 0:01:00.3]} 25... Rh7 {[%clk 0:01:24.2]} 26. Ne2 {[%clk
0:00:59.7]} 26... Qe7 {[%clk 0:01:11.9]} 27. Qg3 {[%clk 0:00:55.4]} 27... c6
{[%clk 0:01:07.3]} 28. dxc6 {[%clk 0:00:52]} 28... bxc6 {[%clk 0:01:06.9]} 29.
b3 {[%clk 0:00:36.4]} 29... Kh8 {[%clk 0:01:03.6]} 30. Nc1 {[%clk 0:00:34.8]}
30... c5 {[%clk 0:00:59.7]} 31. Nd3 {[%clk 0:00:30.9]} 31... c4 {[%clk 0:00:57]}
32. Nxe5 {[%clk 0:00:29.9]} 32... dxe5 {[%clk 0:00:52]} 33. R4f2 {[%clk
0:00:29]} 33... cxb3 {[%clk 0:00:41.5]} 34. Qxb3 {[%clk 0:00:29.4]} 34... Kg7
{[%clk 0:00:31.6]} 35. Be2 {[%clk 0:00:29.2]} 35... a5 {[%clk 0:00:30.3]} 36. a4
{[%clk 0:00:28.9]} 36... Rhh8 {[%clk 0:00:29.7]} 37. Bc4 {[%clk 0:00:27.3]}
37... Rhf8 {[%clk 0:00:28.9]} 38. Bd5 {[%clk 0:00:27.2]} 38... Rc7 {[%clk
0:00:28.5]} 39. c4 {[%clk 0:00:26.7]} 39... f6 {[%clk 0:00:25.3]} 40. Qb6 {[%clk
0:00:25.7]} 40... Rd7 {[%clk 0:00:18.8]} 41. c5 {[%clk 0:00:24.6]} 41... f5
{[%clk 0:00:17.2]} 42. c6 {[%clk 0:00:24.4]} 42... Rc7 {[%clk 0:00:16.6]} 43.
Rb1 {[%clk 0:00:22.6]} 43... Rfc8 {[%clk 0:00:14]} 44. Qxa5 {[%clk 0:00:19.2]}
44... f4 {[%clk 0:00:14.6]} 45. Qb4 {[%clk 0:00:18.3]} 45... Qf6 {[%clk
0:00:13.8]} 46. a5 {[%clk 0:00:18]} 46... g5 {[%clk 0:00:14.5]} 47. a6 {[%clk
0:00:17.7]} 47... g4 {[%clk 0:00:15.2]} 48. Rb3 {[%clk 0:00:15.5]} 48... gxh3
{[%clk 0:00:14.9]} 49. Rxh3 {[%clk 0:00:15]} 49... Ng4 {[%clk 0:00:15.4]} 50.
Rc2 {[%clk 0:00:14.2]} 50... Qd8 {[%clk 0:00:12.4]} 51. Qe1 {[%clk 0:00:13.5]}
51... Rb8 {[%clk 0:00:12.3]} 52. Qd1 {[%clk 0:00:10.5]} 52... Nf6 {[%clk
0:00:08.3]} 53. Qf3 {[%clk 0:00:10]} 53... Ra7 {[%clk 0:00:06.9]} 54. Rc1 {[%clk
0:00:09.9]} 54... Rxa6 {[%clk 0:00:06.2]} 55. c7 {[%clk 0:00:10.1]} 55... Qc8
{[%clk 0:00:02.2]} 56. Qc3 {[%clk 0:00:10.2]} 56... Rbb6 {[%clk 0:00:01.7]} 57.
Qxe5 {[%clk 0:00:10.3]} 57... Rd6 {[%clk 0:00:01.7]} 58. Qg5+ {[%clk 0:00:10.5]}
58... Kf8 {[%clk 0:00:01.5]} 59. Rf3 {[%clk 0:00:10.6]} 1-0

[Event "Early-Titled-Tuesday-Blitz-April-02-2024"]
[Site "Chess.com"]
[Date "2024.04.02"]
[Round "7"]
[White "Rurep26"]
[Black "SaiAgni_98"]
[Result "1-0"]
[WhiteElo "2729"]
[BlackElo "2524"]
[TimeControl "180+1"]
[EndTime "9:18:42 PDT"]
[Termination "Rurep26 won by resignation"]

1. d4 {[%clk 0:03:00.9]} 1... d5 {[%clk 0:02:59.1]} 2. Bf4 {[%clk 0:02:56.2]}
2... Nf6 {[%clk 0:02:55.1]} 3. e3 {[%clk 0:02:55.2]} 3... Bf5 {[%clk 0:02:54.5]}
4. c4 {[%clk 0:02:53.7]} 4... e6 {[%clk 0:02:45.3]} 5. Nc3 {[%clk 0:02:52.6]}
5... c6 {[%clk 0:02:42.6]} 6. Qb3 {[%clk 0:02:52.2]} 6... Qc8 {[%clk 0:02:35.2]}
7. Nf3 {[%clk 0:02:50.9]} 7... Nbd7 {[%clk 0:02:31.5]} 8. h3 {[%clk 0:02:49.9]}
8... Be7 {[%clk 0:02:30.5]} 9. Be2 {[%clk 0:02:49.6]} 9... h6 {[%clk 0:02:30.1]}
10. cxd5 {[%clk 0:02:46.2]} 10... exd5 {[%clk 0:02:27.1]} 11. Rc1 {[%clk
0:02:46]} 11... O-O {[%clk 0:02:24.1]} 12. Nb5 {[%clk 0:02:40.6]} 12... Ne8
{[%clk 0:02:17.6]} 13. O-O {[%clk 0:02:33.7]} 13... Qd8 {[%clk 0:02:11.3]} 14.
Nc3 {[%clk 0:02:32.7]} 14... Qb6 {[%clk 0:02:10.2]} 15. Na4 {[%clk 0:02:13.6]}
15... Qxb3 {[%clk 0:02:08.6]} 16. axb3 {[%clk 0:02:14.5]} 16... Bd6 {[%clk
0:01:56.3]} 17. Bxd6 {[%clk 0:02:09]} 17... Nxd6 {[%clk 0:01:57.2]} 18. Nc5
{[%clk 0:02:09.1]} 18... Nxc5 {[%clk 0:01:49.8]} 19. dxc5 {[%clk 0:02:10]} 19...
Ne4 {[%clk 0:01:46.4]} 20. Nd4 {[%clk 0:02:06]} 20... Bd7 {[%clk 0:01:45.9]} 21.
b4 {[%clk 0:02:05.1]} 21... a6 {[%clk 0:01:45.9]} 22. Nb3 {[%clk 0:02:01]} 22...
Rae8 {[%clk 0:01:44]} 23. Bd3 {[%clk 0:01:50.9]} 23... f5 {[%clk 0:01:40.9]} 24.
Na5 {[%clk 0:01:49.4]} 24... Bc8 {[%clk 0:01:41.1]} 25. Rfe1 {[%clk 0:01:36.5]}
25... Re7 {[%clk 0:01:40.3]} 26. Nb3 {[%clk 0:01:34.5]} 26... g5 {[%clk
0:01:39.4]} 27. Nd4 {[%clk 0:01:34.3]} 27... Kg7 {[%clk 0:01:39.6]} 28. f3
{[%clk 0:01:24.5]} 28... Ng3 {[%clk 0:01:37]} 29. Kh2 {[%clk 0:01:21.6]} 29...
Nh5 {[%clk 0:01:30.6]} 30. g4 {[%clk 0:01:15.2]} 30... fxg4 {[%clk 0:01:29.3]}
31. hxg4 {[%clk 0:01:16.1]} 31... Nf6 {[%clk 0:01:26.6]} 32. Bf5 {[%clk
0:01:11.4]} 32... Kg8 {[%clk 0:00:51.6]} 33. Bxc8 {[%clk 0:01:09.3]} 33... Rxc8
{[%clk 0:00:52.5]} 34. Nf5 {[%clk 0:01:09.5]} 34... Rh7 {[%clk 0:00:50.8]} 35.
Kg3 {[%clk 0:01:06.3]} 35... h5 {[%clk 0:00:48]} 36. gxh5 {[%clk 0:01:04.8]}
36... Nxh5+ {[%clk 0:00:48.1]} 37. Kg4 {[%clk 0:00:53.1]} 37... Kh8 {[%clk
0:00:43.7]} 38. Rh1 {[%clk 0:00:48.1]} 38... Nf6+ {[%clk 0:00:42]} 39. Kxg5
{[%clk 0:00:47.9]} 39... Rf8 {[%clk 0:00:35.9]} 40. Rxh7+ {[%clk 0:00:40.7]}
40... Nxh7+ {[%clk 0:00:36.8]} 41. Kf4 {[%clk 0:00:39.6]} 41... Re8 {[%clk
0:00:27.5]} 42. Rh1 {[%clk 0:00:37.7]} 42... Kg8 {[%clk 0:00:25.8]} 43. Rg1+
{[%clk 0:00:37.7]} 43... Kh8 {[%clk 0:00:21.6]} 44. Rg7 {[%clk 0:00:31.6]} 44...
Rb8 {[%clk 0:00:21.8]} 45. Rf7 {[%clk 0:00:27.3]} 45... Kg8 {[%clk 0:00:20.5]}
46. Nh6+ {[%clk 0:00:27.8]} 46... Kh8 {[%clk 0:00:20.9]} 47. Nf5 {[%clk
0:00:22.4]} 47... Nf8 {[%clk 0:00:20.6]} 48. Nd6 {[%clk 0:00:19.4]} 48... Ne6+
{[%clk 0:00:19.4]} 49. Kg3 {[%clk 0:00:15.9]} 49... Rg8+ {[%clk 0:00:18.9]} 50.
Kf2 {[%clk 0:00:15.3]} 50... Ng5 {[%clk 0:00:18.6]} 51. Rxb7 {[%clk 0:00:15.4]}
51... Nh3+ {[%clk 0:00:19.3]} 52. Ke2 {[%clk 0:00:15.5]} 52... Rg2+ {[%clk
0:00:19.8]} 53. Kd3 {[%clk 0:00:16.2]} 53... Nf2+ {[%clk 0:00:20.4]} 54. Kd4
{[%clk 0:00:15.9]} 54... Nd1 {[%clk 0:00:19.8]} 55. e4 {[%clk 0:00:14.4]} 55...
Rxb2 {[%clk 0:00:19.2]} 56. exd5 {[%clk 0:00:12.7]} 56... Rd2+ {[%clk 0:00:20]}
57. Ke5 {[%clk 0:00:13.3]} 57... Rxd5+ {[%clk 0:00:20.7]} 58. Ke6 {[%clk
0:00:13.8]} 58... Ne3 {[%clk 0:00:20.8]} 59. Rc7 {[%clk 0:00:12.7]} 59... Rd4
{[%clk 0:00:19.3]} 60. Rxc6 {[%clk 0:00:12.9]} 60... Rxb4 {[%clk 0:00:19.8]} 61.
Rb6 {[%clk 0:00:12.9]} 61... Rf4 {[%clk 0:00:20.3]} 62. c6 {[%clk 0:00:12.8]}
62... Nc4 {[%clk 0:00:18.7]} 63. Nxc4 {[%clk 0:00:12.1]} 63... Rxc4 {[%clk
0:00:19.6]} 64. Kd7 {[%clk 0:00:11.6]} 64... a5 {[%clk 0:00:19.9]} 65. c7 {[%clk
0:00:11.8]} 65... a4 {[%clk 0:00:20.6]} 66. Rc6 {[%clk 0:00:11.9]} 66... Rd4+
{[%clk 0:00:19.4]} 67. Ke6 {[%clk 0:00:12.2]} 1-0

[Event "Early-Titled-Tuesday-Blitz-April-02-2024"]
[Site "Chess.com"]
[Date "2024.04.02"]
[Round "7"]
[White "Speed-O-Sonic"]
[Black "ladytitan"]
[Result "1-0"]
[WhiteElo "2444"]
[BlackElo "2250"]
[TimeControl "180+1"]
[EndTime "9:18:42 PDT"]
[Termination "Speed-O-Sonic won on time"]

1. e4 {[%clk 0:02:52.2]} 1... c6 {[%clk 0:03:00]} 2. d4 {[%clk 0:02:51.6]} 2...
d5 {[%clk 0:02:59.7]} 3. exd5 {[%clk 0:02:52.5]} 3... cxd5 {[%clk 0:02:59.7]} 4.
Nf3 {[%clk 0:02:47.8]} 4... Nc6 {[%clk 0:02:59.2]} 5. Ne5 {[%clk 0:02:47.2]}
5... a6 {[%clk 0:02:51.7]} 6. Nxc6 {[%clk 0:02:46.1]} 6... bxc6 {[%clk
0:02:52.6]} 7. c4 {[%clk 0:02:46.2]} 7... Nf6 {[%clk 0:02:52.1]} 8. Be2 {[%clk
0:02:44.4]} 8... g6 {[%clk 0:02:47]} 9. O-O {[%clk 0:02:44.3]} 9... Bg7 {[%clk
0:02:46.8]} 10. Bf3 {[%clk 0:02:43.5]} 10... O-O {[%clk 0:02:46.2]} 11. Nc3
{[%clk 0:02:43.8]} 11... a5 {[%clk 0:02:39.5]} 12. Bf4 {[%clk 0:02:17.4]} 12...
Ba6 {[%clk 0:02:37.9]} 13. cxd5 {[%clk 0:01:41.7]} 13... Bxf1 {[%clk 0:02:34.2]}
14. dxc6 {[%clk 0:01:41.9]} 14... Ba6 {[%clk 0:01:56.3]} 15. c7 {[%clk
0:01:40.8]} 15... Qd7 {[%clk 0:01:56.1]} 16. Bxa8 {[%clk 0:01:39.1]} 16... Rxa8
{[%clk 0:01:57]} 17. Qf3 {[%clk 0:01:39.2]} 17... Rc8 {[%clk 0:01:53.5]} 18. Be5
{[%clk 0:01:11.9]} 18... Nh5 {[%clk 0:01:45.2]} 19. Bxg7 {[%clk 0:01:10.1]}
19... Nxg7 {[%clk 0:01:44.9]} 20. Nd5 {[%clk 0:01:06.3]} 20... Bb7 {[%clk
0:01:26.7]} 21. Nxe7+ {[%clk 0:01:05.7]} 21... Qxe7 {[%clk 0:01:27.6]} 22. Qxb7
{[%clk 0:01:06.4]} 22... Qxc7 {[%clk 0:01:26.9]} 23. Qxc7 {[%clk 0:01:05.7]}
23... Rxc7 {[%clk 0:01:27.8]} 24. d5 {[%clk 0:01:00.4]} 24... Nf5 {[%clk
0:01:22.3]} 25. g3 {[%clk 0:01:00.2]} 25... Kf8 {[%clk 0:01:18.3]} 26. Rb1
{[%clk 0:00:50.5]} 26... Rc5 {[%clk 0:01:11.8]} 27. b4 {[%clk 0:00:49.4]} 27...
axb4 {[%clk 0:01:10.4]} 28. Rxb4 {[%clk 0:00:50.3]} 28... Rxd5 {[%clk
0:01:09.8]} 29. Ra4 {[%clk 0:00:50.7]} 29... Ke7 {[%clk 0:01:06.3]} 30. h4
{[%clk 0:00:50.4]} 30... Rd4 {[%clk 0:01:04.1]} 31. Ra7+ {[%clk 0:00:49.2]}
31... Kf6 {[%clk 0:01:03.8]} 32. a4 {[%clk 0:00:49.2]} 32... Nd6 {[%clk
0:01:01]} 33. a5 {[%clk 0:00:47.6]} 33... Ra4 {[%clk 0:01:00.9]} 34. Kg2 {[%clk
0:00:47.1]} 34... Ke6 {[%clk 0:00:58.3]} 35. Ra6 {[%clk 0:00:45.3]} 35... Kd5
{[%clk 0:00:57.1]} 36. h5 {[%clk 0:00:44]} 36... gxh5 {[%clk 0:00:51.2]} 37. Ra7
{[%clk 0:00:42.7]} 37... Kc6 {[%clk 0:00:47]} 38. Ra6+ {[%clk 0:00:41.3]} 38...
Kc7 {[%clk 0:00:44.1]} 39. Ra7+ {[%clk 0:00:40.8]} 39... Kc6 {[%clk 0:00:29.3]}
40. Ra6+ {[%clk 0:00:41]} 40... Kc5 {[%clk 0:00:29.7]} 41. Ra8 {[%clk
0:00:35.4]} 41... Kb5 {[%clk 0:00:25.4]} 42. Rh8 {[%clk 0:00:35]} 42... Rxa5
{[%clk 0:00:21.4]} 43. Rxh7 {[%clk 0:00:35.2]} 43... Kc6 {[%clk 0:00:20.4]} 44.
Rh6 {[%clk 0:00:34.9]} 44... Kd7 {[%clk 0:00:20.1]} 45. Rf6 {[%clk 0:00:35.3]}
45... Ke7 {[%clk 0:00:19.8]} 46. Rf4 {[%clk 0:00:35.9]} 46... Rf5 {[%clk
0:00:14.7]} 47. Rb4 {[%clk 0:00:34.5]} 47... Kf6 {[%clk 0:00:14.7]} 48. Rb6
{[%clk 0:00:33.2]} 48... Rd5 {[%clk 0:00:14.8]} 49. Ra6 {[%clk 0:00:33.2]} 49...
Kg5 {[%clk 0:00:13.7]} 50. Ra4 {[%clk 0:00:33]} 50... Nf5 {[%clk 0:00:12.4]} 51.
Kf3 {[%clk 0:00:30.3]} 51... Rd3+ {[%clk 0:00:11.2]} 52. Ke2 {[%clk 0:00:26.7]}
52... Rd4 {[%clk 0:00:09.1]} 53. Ra5 {[%clk 0:00:24.5]} 53... Re4+ {[%clk
0:00:07.7]} 54. Kf3 {[%clk 0:00:24]} 54... Re6 {[%clk 0:00:06.8]} 55. Kg2 {[%clk
0:00:23.9]} 55... f6 {[%clk 0:00:04.2]} 56. Rb5 {[%clk 0:00:23.5]} 56... Re5
{[%clk 0:00:04.5]} 57. Rb4 {[%clk 0:00:23.9]} 57... Ng7 {[%clk 0:00:02.5]} 58.
f4+ {[%clk 0:00:24.2]} 58... Kf5 {[%clk 0:00:02.5]} 59. fxe5 {[%clk 0:00:25.1]}
59... fxe5 {[%clk 0:00:03.2]} 60. Kf3 {[%clk 0:00:24.5]} 60... Ne6 {[%clk
0:00:03]} 61. Rb8 {[%clk 0:00:24.6]} 61... Nd4+ {[%clk 0:00:03.2]} 62. Ke3
{[%clk 0:00:24.1]} 62... Nc2+ {[%clk 0:00:03.7]} 63. Kd2 {[%clk 0:00:24.5]}
63... Nd4 {[%clk 0:00:04]} 64. Rg8 {[%clk 0:00:24.3]} 64... Nf3+ {[%clk
0:00:03.5]} 65. Ke3 {[%clk 0:00:24.5]} 65... Nd4 {[%clk 0:00:03.9]} 66. Rh8
{[%clk 0:00:22.1]} 1-0

[Event "Early-Titled-Tuesday-Blitz-April-02-2024"]
[Site "Chess.com"]
[Date "2024.04.02"]
[Round "7"]
[White "Egor_Koshulyan"]
[Black "ChainedDowntohell"]
[Result "1/2-1/2"]
[WhiteElo "2739"]
[BlackElo "2571"]
[TimeControl "180+1"]
[EndTime "9:18:47 PDT"]
[Termination "Game drawn - insufficient material"]

1. e4 {[%clk 0:03:00.9]} 1... e6 {[%clk 0:02:54.7]} 2. d4 {[%clk 0:03:00.9]}
2... b6 {[%clk 0:02:53.7]} 3. Bd3 {[%clk 0:02:55.5]} 3... Bb7 {[%clk 0:02:53.4]}
4. Nf3 {[%clk 0:02:54.8]} 4... Nf6 {[%clk 0:02:51.9]} 5. Qe2 {[%clk 0:02:53.6]}
5... d5 {[%clk 0:02:50.6]} 6. e5 {[%clk 0:02:54]} 6... Ne4 {[%clk 0:02:44.7]} 7.
O-O {[%clk 0:02:53.3]} 7... c5 {[%clk 0:02:43.5]} 8. c3 {[%clk 0:02:52.6]} 8...
Be7 {[%clk 0:02:41]} 9. Ne1 {[%clk 0:02:50.9]} 9... h6 {[%clk 0:02:34.6]} 10.
Nd2 {[%clk 0:02:32.2]} 10... Nxd2 {[%clk 0:02:30.1]} 11. Bxd2 {[%clk 0:02:33.1]}
11... Qc8 {[%clk 0:02:25.3]} 12. f4 {[%clk 0:02:24]} 12... g6 {[%clk 0:02:24.5]}
13. b4 {[%clk 0:02:17.5]} 13... h5 {[%clk 0:02:20.5]} 14. Rc1 {[%clk 0:02:10.9]}
14... c4 {[%clk 0:02:14.8]} 15. Bc2 {[%clk 0:02:10.8]} 15... a5 {[%clk
0:02:14.3]} 16. b5 {[%clk 0:02:09.8]} 16... a4 {[%clk 0:02:11.9]} 17. g3 {[%clk
0:02:07.9]} 17... Ra5 {[%clk 0:02:08.1]} 18. Rb1 {[%clk 0:02:07.9]} 18... Qc7
{[%clk 0:02:04.1]} 19. h3 {[%clk 0:02:07.6]} 19... Bc8 {[%clk 0:02:02]} 20. Ng2
{[%clk 0:02:06.5]} 20... Bd7 {[%clk 0:02:01.8]} 21. Ne3 {[%clk 0:02:06.2]} 21...
Rxb5 {[%clk 0:01:54.3]} 22. Bxa4 {[%clk 0:01:59.6]} 22... Rxb1 {[%clk
0:01:53.4]} 23. Bxd7+ {[%clk 0:02:00.5]} 23... Nxd7 {[%clk 0:01:44.5]} 24. Rxb1
{[%clk 0:02:01.4]} 24... Kd8 {[%clk 0:01:40.8]} 25. Qf3 {[%clk 0:01:54.9]} 25...
Kc8 {[%clk 0:01:40.5]} 26. a4 {[%clk 0:01:54.8]} 26... Qc6 {[%clk 0:01:37.2]}
27. g4 {[%clk 0:01:53.6]} 27... hxg4 {[%clk 0:01:36.1]} 28. hxg4 {[%clk
0:01:54.5]} 28... Qxa4 {[%clk 0:01:35.9]} 29. f5 {[%clk 0:01:55.1]} 29... gxf5
{[%clk 0:01:34.8]} 30. gxf5 {[%clk 0:01:56]} 30... Qa2 {[%clk 0:01:30.1]} 31.
Rd1 {[%clk 0:01:55.7]} 31... Bg5 {[%clk 0:01:17.3]} 32. Nf1 {[%clk 0:01:33.3]}
32... Bxd2 {[%clk 0:01:12]} 33. Rxd2 {[%clk 0:01:34.2]} 33... Qb1 {[%clk
0:01:10]} 34. Rf2 {[%clk 0:01:27.7]} 34... Rg8+ {[%clk 0:01:00.6]} 35. Kh1
{[%clk 0:01:28.1]} 35... b5 {[%clk 0:00:50.7]} 36. Kh2 {[%clk 0:01:10.1]} 36...
Rh8+ {[%clk 0:00:45.5]} 37. Kg2 {[%clk 0:01:09.1]} 37... Rg8+ {[%clk 0:00:45.6]}
38. Ng3 {[%clk 0:01:09.4]} 38... Qc1 {[%clk 0:00:32.5]} 39. fxe6 {[%clk
0:00:57.8]} 39... fxe6 {[%clk 0:00:33.4]} 40. Qf7 {[%clk 0:00:58.5]} 40... Qg5
{[%clk 0:00:24.7]} 41. Rf3 {[%clk 0:00:53.5]} 41... Qd2+ {[%clk 0:00:24.3]} 42.
Rf2 {[%clk 0:00:51.5]} 42... Qg5 {[%clk 0:00:24.1]} 43. Rf3 {[%clk 0:00:44.4]}
43... Qg6 {[%clk 0:00:23.7]} 44. Qe7 {[%clk 0:00:38.7]} 44... Qc2+ {[%clk
0:00:22]} 45. Rf2 {[%clk 0:00:38.3]} 45... Qe4+ {[%clk 0:00:21.1]} 46. Rf3
{[%clk 0:00:33.9]} 46... Qe2+ {[%clk 0:00:18]} 47. Rf2 {[%clk 0:00:33.6]} 47...
Qe3 {[%clk 0:00:13.2]} 48. Rf3 {[%clk 0:00:28.8]} 48... Qd2+ {[%clk 0:00:13.4]}
49. Rf2 {[%clk 0:00:28.2]} 49... Qxc3 {[%clk 0:00:12.9]} 50. Rf3 {[%clk
0:00:28.4]} 50... Qc2+ {[%clk 0:00:12.1]} 51. Rf2 {[%clk 0:00:25.7]} 51... Qe4+
{[%clk 0:00:12.4]} 52. Rf3 {[%clk 0:00:25.5]} 52... Qe2+ {[%clk 0:00:12.6]} 53.
Rf2 {[%clk 0:00:25.6]} 53... Qe3 {[%clk 0:00:12.7]} 54. Rf3 {[%clk 0:00:24.2]}
54... Qd2+ {[%clk 0:00:12.9]} 55. Rf2 {[%clk 0:00:24.6]} 55... Qxd4 {[%clk
0:00:11.3]} 56. Qxe6 {[%clk 0:00:24.4]} 56... Qe4+ {[%clk 0:00:07.4]} 57. Rf3
{[%clk 0:00:24.1]} 57... Qe2+ {[%clk 0:00:05.4]} 58. Rf2 {[%clk 0:00:24.5]}
58... Rxg3+ {[%clk 0:00:03.5]} 59. Kxg3 {[%clk 0:00:24.6]} 59... Qxe5+ {[%clk
0:00:03.6]} 60. Qxe5 {[%clk 0:00:24.6]} 60... Nxe5 {[%clk 0:00:04.5]} 61. Rf5
{[%clk 0:00:25.3]} 61... Nc6 {[%clk 0:00:02.1]} 62. Rxd5 {[%clk 0:00:26.2]}
62... Kc7 {[%clk 0:00:01.8]} 63. Rxb5 {[%clk 0:00:26.2]} 63... Kd6 {[%clk
0:00:02.7]} 64. Kf4 {[%clk 0:00:26.2]} 64... c3 {[%clk 0:00:02.2]} 65. Rb3
{[%clk 0:00:25.3]} 65... Nd4 {[%clk 0:00:01.9]} 66. Rb4 {[%clk 0:00:14.4]} 66...
Kd5 {[%clk 0:00:01.6]} 67. Ke3 {[%clk 0:00:04.7]} 67... Nc2+ {[%clk 0:00:01.3]}
68. Kd3 {[%clk 0:00:05.3]} 68... Nxb4+ {[%clk 0:00:02.2]} 69. Kxc3 {[%clk
0:00:06.2]} 1/2-1/2